bitfinex-derivatives/quotes_BTCF0:USTF0_20240902
["timestamp","ask_amount","ask_price","bid_price","bid_amount"]
[1725278311470,0.00025664,58451.0,58450.0,0.175538]
[1725278311684,0.00025664,58451.0,58450.0,0.175938]
[1725278312401,0.00325664,58451.0,58450.0,0.175938]
[1725278312574,0.01725664,58451.0,58450.0,0.175938]
[1725278312977,0.01425664,58451.0,58450.0,0.175938]
[1725278313191,0.01725664,58451.0,58450.0,0.177938]
[1725278314487,0.01725664,58451.0,58450.0,0.0924]
[1725278315875,0.01725664,58451.0,58450.0,0.0024]
[1725278316072,0.10279364,58451.0,58450.0,0.0924]
[1725278316486,0.10279364,58451.0,58450.0,0.09592767]
[1725278316873,0.10279364,58451.0,58450.0,0.00592767]
[1725278328092,0.10279364,58451.0,58450.0,0.09146567]
[1725278328495,0.01725664,58451.0,58450.0,0.09146567]
[1725278329583,0.01725664,58451.0,58450.0,0.17703883]
[1725278331491,0.01725664,58451.0,58450.0,0.30739851]
[1725278331690,0.01725664,58451.0,58450.0,0.09146567]
[1725278332901,0.01725664,58451.0,58450.0,0.45226567]
[1725278334405,0.01725664,58451.0,58450.0,0.53780367]
[1725278335501,1e-08,58451.0,58450.0,1.05104367]
[1725278338504,1e-08,58451.0,58450.0,1.09884367]
[1725278338703,1e-08,58451.0,58450.0,0.58560367]
[1725278343611,1e-08,58451.0,58450.0,0.65387936]
[1725278344003,1e-08,58451.0,58450.0,0.58560367]
[1725278344203,1e-08,58451.0,58450.0,0.65387218]
[1725278344510,1e-08,58451.0,58450.0,0.67560367]
[1725278345398,1e-08,58451.0,58450.0,0.74386983]
[1725278345600,1e-08,58451.0,58450.0,0.67560367]
[1725278346707,1e-08,58451.0,58450.0,1.18884367]
[1725278349614,0.00025664,58456.0,58455.0,0.085531]
[1725278349808,0.00025664,58456.0,58455.0,0.175931]
[1725278350807,0.00025664,58456.0,58455.0,0.176931]
[1725278351013,0.00025664,58456.0,58455.0,0.538731]
[1725278353101,0.00025664,58456.0,58455.0,0.60699173]
[1725278353908,0.00025664,58456.0,58455.0,0.538731]
[1725278354704,0.00025664,58456.0,58455.0,0.448731]
[1725278354905,0.00025664,58456.0,58455.0,0.538731]
[1725278355915,0.085511,58469.0,58465.0,0.085515]
[1725278356110,0.22220461,58469.0,58468.0,0.09]
[1725278356313,0.22220461,58469.0,58468.0,0.0904]
[1725278356314,0.12739208,58469.0,58468.0,0.0904]
[1725278356709,0.04188108,58469.0,58468.0,0.0904]
[1725278357421,0.04188108,58469.0,58468.0,0.175912]
[1725278358011,0.04188108,58469.0,58468.0,0.176912]
[1725278358211,0.04188108,58469.0,58468.0,0.086912]
[1725278358415,0.132209,58470.0,58468.0,0.176912]
[1725278358619,0.132209,58470.0,58469.0,0.0004]
[1725278359117,0.17408892,58470.0,58469.0,0.0004]
[1725278359422,0.132209,58470.0,58469.0,0.0004]
[1725278359919,0.132209,58470.0,58469.0,0.0014]
[1725278360313,0.0467,58470.0,58469.0,0.086911]
[1725278361108,0.0467,58470.0,58469.0,0.087911]
[1725278367418,0.0467,58470.0,58469.0,0.0024]
[1725278367419,0.132209,58470.0,58469.0,0.0024]
[1725278369023,0.25173592,58470.0,58469.0,0.0024]
[1725278369330,1.02583392,58470.0,58469.0,0.0024]
[1725278369520,0.906307,58470.0,58469.0,0.0024]
[1725278369823,0.94818717,58470.0,58469.0,0.0024]
[1725278370524,1.08488078,58470.0,58469.0,0.0024]
[1725278370927,0.085518,58464.0,58463.0,0.00025664]
[1725278371221,0.48859817,58464.0,58463.0,0.00376747]
[1725278371532,1.77279417,58464.0,58463.0,0.00025664]
[1725278372126,1.77280437,58464.0,58463.0,0.00025664]
[1725278372523,1.82531126,58464.0,58463.0,0.00025664]
[1725278372712,1.046396,58464.0,58463.0,0.00125664]
[1725278373134,1.046396,58464.0,58463.0,0.00225664]
[1725278373518,0.533236,58464.0,58463.0,0.00225664]
[1725278373723,1.046396,58464.0,58463.0,0.00225664]
[1725278374018,1.0882853,58464.0,58463.0,0.00225664]
[1725278374218,1.0882853,58464.0,58463.0,0.00591589]
[1725278374430,1.14079069,58464.0,58463.0,0.00225664]
[1725278374626,1.69890139,58464.0,58463.0,0.00225664]
[1725278376327,1.69890139,58464.0,58449.0,0.3608]
[1725278376328,0.085534,58453.0,58452.0,0.085535]
[1725278376526,0.085934,58453.0,58452.0,0.175535]
[1725278377636,0.0004,58453.0,58452.0,0.176535]
[1725278378624,0.0024,58453.0,58452.0,0.177535]
[1725278379134,0.0024,58453.0,58452.0,0.176535]
[1725278379334,0.0024,58453.0,58452.0,0.177535]
[1725278391444,0.0024,58453.0,58452.0,0.087535]
[1725278391745,0.0024,58453.0,58452.0,0.177535]
[1725278400944,0.0024,58453.0,58452.0,0.175035]
[1725278401839,0.0024,58453.0,58452.0,0.26057]
[1725278402039,0.00025664,58458.0,58457.0,0.171056]
[1725278402247,0.00025664,58458.0,58457.0,1.271856]
[1725278402548,0.00025664,58458.0,58457.0,1.272256]
[1725278403050,0.446309,58471.0,58466.0,0.085515]
[1725278403243,0.446309,58471.0,58470.0,0.0904]
[1725278405150,0.446309,58471.0,58470.0,0.0914]
[1725278405354,0.446309,58471.0,58470.0,0.176909]
[1725278405355,0.3608,58471.0,58470.0,0.176909]
[1725278405546,0.178903,58474.0,58470.0,0.176909]
[1725278405547,0.0934,58474.0,58473.0,0.085505]
[1725278405747,0.0934,58474.0,58473.0,0.175905]
[1725278406251,0.178903,58474.0,58473.0,0.0004]
[1725278406454,1.572949,58474.0,58473.0,0.0004]
[1725278406845,1.933749,58474.0,58473.0,0.0004]
[1725278407055,1.933749,58474.0,58473.0,0.0014]
[1725278407240,1.933749,58474.0,58473.0,0.0024]
[1725278407446,1.931249,58474.0,58473.0,0.0024]
[1725278408851,1.82571684,58474.0,58473.0,0.0024]
[1725278409050,1.74021384,58474.0,58473.0,0.0024]
[1725278409256,1.14021384,58474.0,58473.0,0.0024]
[1725278409548,0.62717384,58474.0,58473.0,0.0024]
[1725278409754,1.14021384,58474.0,58473.0,0.0024]
[1725278410357,0.537203,58474.0,58473.0,0.0024]
[1725278412358,0.537203,58474.0,58473.0,0.087905]
[1725278414259,0.537203,58474.0,58473.0,0.247905]
[1725278414260,0.491503,58474.0,58473.0,0.247905]
[1725278414956,0.0452,58474.0,58473.0,0.247905]
[1725278415160,0.00025664,58476.0,58475.0,0.085502]
[1725278415370,0.00025664,58476.0,58475.0,0.085902]
[1725278415663,0.08575664,58476.0,58475.0,0.0004]
[1725278416765,0.08575664,58476.0,58475.0,0.0024]
[1725278418363,0.08575664,58476.0,58475.0,0.087902]
[1725278418558,0.12763337,58476.0,58475.0,0.087902]
[1725278419467,0.26413768,58476.0,58475.0,0.087902]
[1725278420368,0.12763337,58476.0,58475.0,0.087902]
[1725278423662,0.08575664,58476.0,58475.0,0.087902]
[1725278428272,0.00025664,58476.0,58475.0,0.087902]
[1725278429865,0.08575664,58476.0,58475.0,0.087902]
[1725278430571,0.12763312,58476.0,58475.0,0.087902]
[1725278430773,0.22226095,58476.0,58475.0,0.087902]
[1725278430971,0.26413743,58476.0,58475.0,0.087902]
[1725278432167,0.12763312,58476.0,58475.0,0.087902]
[1725278432771,0.12763312,58476.0,58475.0,0.177902]
[1725278432980,0.25638703,58476.0,58475.0,0.177902]
[1725278433364,0.18012253,58476.0,58475.0,0.177902]
[1725278433570,0.25652043,58476.0,58475.0,0.177902]
[1725278433873,0.29839691,58476.0,58475.0,0.177902]
[1725278434074,0.35088632,58476.0,58475.0,0.177902]
[1725278434278,0.18012253,58476.0,58475.0,0.177902]
[1725278434773,0.1801226,58476.0,58475.0,0.177902]
[1725278436089,0.1801226,58476.0,58475.0,0.087902]
[1725278437077,0.12763319,58476.0,58475.0,0.087902]
[1725278437272,0.1801226,58476.0,58475.0,0.087902]
[1725278437874,0.33383484,58476.0,58475.0,0.087902]
[1725278438075,0.1801226,58476.0,58475.0,0.087902]
[1725278438378,0.1801226,58476.0,58475.0,0.0024]
[1725278438778,0.08575664,58476.0,58475.0,0.0024]
[1725278440479,0.17125664,58476.0,58475.0,0.0024]
[1725278440682,0.53205664,58476.0,58475.0,0.0024]
[1725278443779,0.61755664,58476.0,58475.0,0.0024]
[1725278444177,1.73059664,58476.0,58475.0,0.0024]
[1725278444584,0.085514,58467.0,58466.0,0.05118594]
[1725278444884,0.3612,58467.0,58463.0,0.05118594]
[1725278445086,0.3612,58467.0,58460.0,0.085524]
[1725278445087,0.0993,58466.0,58465.0,0.00468862]
[1725278445385,0.27033,58466.0,58465.0,0.00468862]
[1725278445781,1.829765,58466.0,58465.0,1e-08]
[1725278445977,1.827765,58466.0,58465.0,1e-08]
[1725278446689,0.084533,58454.0,58453.0,0.085533]
[1725278446876,0.085538,58451.0,58450.0,0.085538]
[1725278447076,0.085938,58451.0,58450.0,0.085538]
[1725278447280,0.085538,58451.0,58450.0,0.085538]
[1725278448577,0.084538,58451.0,58450.0,0.085538]
[1725278449072,0.084538,58451.0,58450.0,0.086538]
[1725278449384,0.088538,58451.0,58450.0,0.087538]
[1725278450182,0.088538,58451.0,58450.0,0.09203757]
[1725278452280,0.088538,58451.0,58450.0,0.00649957]
[1725278452481,0.449338,58451.0,58450.0,0.00649957]
[1725278452690,0.534875,58451.0,58450.0,0.00649957]
[1725278452877,0.449338,58451.0,58450.0,0.00649957]
[1725278456678,0.534875,58451.0,58450.0,0.00649957]
[1725278456891,0.449338,58451.0,58450.0,0.00649957]
[1725278457187,0.534875,58451.0,58450.0,0.00649957]
[1725278457397,0.534875,58451.0,58445.0,0.00025664]
[1725278457398,0.256632,58446.0,58445.0,0.00025664]
[1725278457688,0.777832,58446.0,58445.0,0.00025664]
[1725278457988,1.891112,58446.0,58445.0,0.00025664]
[1725278458577,1.809568,58446.0,58445.0,0.00125664]
[1725278458781,1.895112,58446.0,58445.0,0.00225664]
[1725278459182,1.895112,58446.0,58445.0,0.00125664]
[1725278459383,1.895112,58446.0,58445.0,0.00225664]
[1725278460480,0.696288,58446.0,58445.0,0.00225664]
[1725278461090,1.809568,58446.0,58445.0,0.00225664]
[1725278461594,1.895112,58446.0,58445.0,0.00225664]
[1725278462392,0.256671,58437.0,58436.0,0.0684]
[1725278462691,0.777871,58437.0,58436.0,0.0684]
[1725278462991,1.291231,58437.0,58436.0,0.0684]
[1725278463193,1.891231,58437.0,58436.0,0.0684]
[1725278463692,1.899231,58437.0,58436.0,0.0694]
[1725278464491,1.313231,58437.0,58436.0,0.0704]
[1725278464887,1.31768724,58437.0,58436.0,0.0704]
[1725278465797,1.91768724,58437.0,58436.0,0.0704]
[1725278465981,1.15768724,58437.0,58436.0,0.0704]
[1725278466183,1.31768724,58437.0,58436.0,0.0704]
[1725278467493,1.91768724,58437.0,58436.0,0.0704]
[1725278469291,1.31768724,58437.0,58436.0,0.0704]
[1725278469495,1.15768724,58437.0,58436.0,0.0704]
[1725278469699,1.31768724,58437.0,58436.0,0.0704]
[1725278469889,0.80432724,58437.0,58436.0,0.0704]
[1725278470793,0.754314,58437.0,58436.0,0.0704]
[1725278476234,0.754314,58437.0,58436.0,0.155959]
[1725278476397,0.754314,58437.0,58436.0,0.16049807]
[1725278476795,0.754314,58437.0,58436.0,0.07493907]
[1725278481102,0.393514,58437.0,58436.0,0.07393907]
[1725278481403,1.115114,58437.0,58436.0,0.07493907]
[1725278481605,1.114114,58437.0,58436.0,0.07493907]
[1725278482102,1.107114,58437.0,58436.0,0.07393907]
[1725278482401,1.114114,58437.0,58436.0,0.0704]
[1725278482708,2.433031,58437.0,58436.0,0.0704]
[1725278484004,2.419031,58437.0,58436.0,0.0694]
[1725278484211,2.433031,58437.0,58436.0,0.0704]
[1725278484602,2.426031,58437.0,58436.0,0.0694]
[1725278484802,2.419031,58437.0,58436.0,0.0694]
[1725278485012,2.433031,58437.0,58436.0,0.0704]
[1725278485705,2.419031,58437.0,58436.0,0.0694]
[1725278485906,2.433031,58437.0,58436.0,0.0704]
[1725278487004,2.518588,58437.0,58436.0,0.0704]
[1725278487201,2.433031,58437.0,58436.0,0.0704]
[1725278490508,2.518588,58437.0,58436.0,0.0704]
[1725278490709,2.433031,58437.0,58436.0,0.0704]
[1725278490912,2.52747851,58437.0,58436.0,0.0704]
[1725278491105,2.68138879,58437.0,58436.0,0.0704]
[1725278491799,2.76694579,58437.0,58436.0,0.0704]
[1725278491999,2.61303551,58437.0,58436.0,0.0704]
[1725278493112,0.171152,58424.0,58423.0,0.0949]
[1725278493310,0.171152,58424.0,58423.0,0.09941538]
[1725278493311,0.77386635,58424.0,58423.0,0.09941538]
[1725278493920,0.69386635,58424.0,58423.0,0.09941538]
[1725278494614,0.70786635,58424.0,58423.0,0.10041538]
[1725278494815,0.79344235,58424.0,58423.0,0.10041538]
[1725278495205,0.80144264,58424.0,58423.0,0.00651538]
[1725278495612,0.80144375,58424.0,58423.0,0.00651538]
[1725278498022,0.51029175,58424.0,58423.0,0.09209338]
[1725278498524,0.42471575,58424.0,58423.0,0.81115138]
[1725278498708,0.3828,58424.0,58423.0,1.32557338]
[1725278498909,0.3828,58424.0,58423.0,1.54131355]
[1725278499115,0.3828,58424.0,58423.0,1.54149951]
[1725278500211,0.3828,58424.0,58423.0,0.81106924]
[1725278500618,0.3828,58424.0,58423.0,1.41106924]
[1725278500808,0.3832,58424.0,58423.0,1.41106924]
[1725278501009,0.3832,58424.0,58423.0,1.54149845]
[1725278502119,0.3832,58424.0,58423.0,1.62149845]
[1725278502718,0.3832,58424.0,58423.0,1.40557338]
[1725278502926,0.0224,58424.0,58423.0,1.53600259]
[1725278503123,0.0224,58424.0,58423.0,1.62149864]
[1725278503419,0.00025664,58429.0,58428.0,0.085571]
[1725278504217,0.00025664,58429.0,58428.0,0.21598765]
[1725278504626,0.00025664,58429.0,58428.0,0.30155865]
[1725278504849,0.01425664,58429.0,58428.0,0.30255865]
[1725278505822,0.01525664,58429.0,58428.0,0.173142]
[1725278506015,0.01525664,58429.0,58428.0,0.087571]
[1725278506922,0.00125664,58429.0,58428.0,0.087571]
[1725278508531,0.00025664,58429.0,58428.0,0.087571]
[1725278509927,0.00025664,58429.0,58428.0,0.086571]
[1725278510227,0.00325664,58429.0,58428.0,0.087571]
[1725278513227,0.00025664,58429.0,58428.0,1.646382]
[1725278513528,0.00325664,58429.0,58428.0,1.647382]
[1725278514031,0.00025664,58429.0,58428.0,2.296382]
[1725278514226,0.00325664,58429.0,58428.0,2.297382]
[1725278514632,0.00325664,58429.0,58428.0,1.183942]
[1725278514833,0.00025664,58429.0,58428.0,0.60124993]
[1725278515035,0.00325664,58429.0,58428.0,0.60224993]
[1725278515222,0.00325664,58429.0,58428.0,0.533942]
[1725278515427,0.00325664,58429.0,58428.0,1.183942]
[1725278516336,0.00325664,58429.0,58428.0,0.173142]
[1725278516626,0.00325664,58429.0,58428.0,0.087571]
[1725278517319,0.00025664,58429.0,58428.0,0.086571]
[1725278517528,0.08982564,58429.0,58428.0,0.002]
[1725278517834,0.45062564,58429.0,58428.0,0.002]
[1725278518034,0.08982564,58429.0,58428.0,0.002]
[1725278520628,0.08982564,58429.0,58428.0,0.087571]
[1725278529239,0.00425664,58429.0,58428.0,0.087571]
[1725278532142,0.08982564,58429.0,58428.0,0.002]
[1725278532337,0.17539464,58429.0,58428.0,0.002]
[1725278534945,0.53619464,58429.0,58428.0,0.002]
[1725278535941,0.57810525,58429.0,58428.0,0.002]
[1725278536142,0.21730525,58429.0,58428.0,0.002]
[1725278537339,0.17539464,58429.0,58428.0,0.002]
[1725278537947,0.08982564,58429.0,58428.0,0.087571]
[1725278538446,0.08982564,58429.0,58428.0,0.207571]
[1725278542843,0.00425664,58429.0,58428.0,0.207571]
[1725278546943,0.085548,58444.0,58434.0,0.08556]
[1725278547138,0.085547,58444.0,58443.0,0.1204]
[1725278547351,0.085547,58444.0,58443.0,0.205949]
[1725278547552,0.085537,58451.0,58443.0,0.1204]
[1725278547742,0.3608,58452.0,58450.0,0.1204]
[1725278548454,0.3608,58452.0,58450.0,0.205937]
[1725278549052,0.3648,58452.0,58450.0,0.206937]
[1725278549751,0.3648,58452.0,58450.0,0.207937]
[1725278549946,0.3648,58452.0,58450.0,0.087937]
[1725278550851,0.12,58451.0,58450.0,0.087937]
[1725278551953,0.3608,58452.0,58450.0,0.087937]
[1725278552148,0.3608,58452.0,58451.0,0.0004]
[1725278552652,0.3608,58452.0,58451.0,0.085937]
[1725278553450,0.08553,58456.0,58451.0,0.0004]
[1725278553742,0.00025664,58457.0,58451.0,0.0004]
[1725278553743,0.00025664,58457.0,58456.0,0.08553]
[1725278553948,0.00025664,58457.0,58456.0,0.08593]
[1725278554958,0.00025664,58457.0,58456.0,0.08693]
[1725278555352,0.00025664,58457.0,58456.0,0.08793]
[1725278556857,0.00025664,58457.0,58456.0,0.28793]
[1725278558757,0.00025664,58457.0,58456.0,0.29234807]
[1725278558957,0.04214239,58457.0,58456.0,0.29234807]
[1725278559342,0.00025664,58457.0,58456.0,0.37787807]
[1725278560353,0.00025664,58457.0,58456.0,1.49107807]
[1725278563362,0.00025664,58457.0,58456.0,2.14107807]
[1725278564360,0.00025664,58457.0,58456.0,2.22660807]
[1725278564557,0.13682431,58470.0,58469.0,0.085511]
[1725278564750,0.13682431,58471.0,58470.0,0.085509]
[1725278565058,0.04188066,58471.0,58470.0,0.085909]
[1725278565359,0.40668,58475.0,58473.0,0.085505]
[1725278565562,0.4058,58475.0,58474.0,0.085503]
[1725278565754,0.44767868,58475.0,58474.0,0.285503]
[1725278566063,0.3608,58475.0,58474.0,0.285503]
[1725278566650,0.3608,58475.0,58474.0,0.286503]
[1725278567762,0.3608,58475.0,58474.0,0.287503]
[1725278568570,0.3608,58475.0,58474.0,0.2920481]
[1725278569252,0.3608,58476.0,58475.0,0.085502]
[1725278569752,0.3608,58476.0,58475.0,0.085902]
[1725278570768,0.3608,58476.0,58475.0,0.086902]
[1725278571060,0.3608,58476.0,58475.0,0.087902]
[1725278571463,0.4463,58476.0,58475.0,0.087902]
[1725278573167,0.4463,58476.0,58475.0,0.0024]
[1725278574260,0.5318,58476.0,58475.0,0.0024]
[1725278577777,0.6173,58476.0,58475.0,0.0024]
[1725278577980,0.7373,58476.0,58475.0,0.0024]
[1725278578173,0.5318,58476.0,58475.0,0.0024]
[1725278578372,0.4463,58476.0,58475.0,0.087902]
[1725278581378,0.3608,58476.0,58475.0,0.087902]
[1725278583867,0.085496,58479.0,58478.0,0.085497]
[1725278584074,0.085496,58479.0,58478.0,0.085897]
[1725278584278,0.00025664,58480.0,58479.0,0.085496]
[1725278584469,0.00025664,58480.0,58479.0,0.285896]
[1725278585679,0.00025664,58480.0,58479.0,0.371392]
[1725278586475,0.00025664,58480.0,58479.0,0.372392]
[1725278586682,0.00025664,58480.0,58479.0,1.485392]
[1725278586870,1e-08,58480.0,58479.0,0.286896]
[1725278587078,1e-08,58480.0,58479.0,0.287896]
[1725278587280,1e-08,58480.0,58479.0,0.29244234]
[1725278587475,0.08549501,58480.0,58479.0,0.00694634]
[1725278589084,0.08549501,58480.0,58479.0,0.20694634]
[1725278589981,0.08549501,58480.0,58479.0,0.29244234]
[1725278590185,0.08549501,58480.0,58479.0,0.29144234]
[1725278590385,0.08549501,58480.0,58479.0,0.29244234]
[1725278591404,1e-08,58480.0,58479.0,0.29244234]
[1725278592484,1e-08,58480.0,58479.0,1.40544234]
[1725278593090,1e-08,58480.0,58479.0,1.50424234]
[1725278594183,1e-08,58480.0,58479.0,1.58973834]
[1725278594986,1e-08,58480.0,58479.0,1.50424234]
[1725278595782,1e-08,58480.0,58479.0,0.90424234]
[1725278595989,1e-08,58480.0,58479.0,1.50424234]
[1725278596189,1e-08,58480.0,58479.0,0.97264469]
[1725278596497,1e-08,58480.0,58479.0,1.57264469]
[1725278596686,1e-08,58480.0,58479.0,1.05964469]
[1725278596882,1e-08,58480.0,58479.0,1.57264469]
[1725278597084,1e-08,58480.0,58479.0,0.97264469]
[1725278597484,1e-08,58480.0,58479.0,0.45964469]
[1725278597697,1e-08,58480.0,58479.0,0.97264469]
[1725278598699,1e-08,58480.0,58479.0,1.50424234]
[1725278599491,1e-08,58480.0,58479.0,1.65814069]
[1725278599691,1e-08,58480.0,58479.0,1.57264469]
[1725278599889,1e-08,58480.0,58479.0,1.50424234]
[1725278600395,1e-08,58480.0,58479.0,1.57229148]
[1725278600997,1e-08,58480.0,58479.0,1.65778748]
[1725278601198,1e-08,58480.0,58479.0,1.57229148]
[1725278601597,1e-08,58480.0,58479.0,1.65778748]
[1725278602705,1e-08,58480.0,58479.0,1.58973834]
[1725278603091,1e-08,58480.0,58479.0,1.50424234]
[1725278603292,1e-08,58480.0,58479.0,0.90424234]
[1725278603696,1e-08,58480.0,58479.0,0.39124234]
[1725278603904,1e-08,58480.0,58479.0,1.50424234]
[1725278604100,1e-08,58480.0,58479.0,0.45929148]
[1725278605602,1e-08,58480.0,58479.0,0.39124234]
[1725278606610,1e-08,58480.0,58479.0,0.45929148]
[1725278608200,1e-08,58480.0,58479.0,0.98973834]
[1725278608701,1e-08,58480.0,58479.0,0.90424234]
[1725278609407,1e-08,58480.0,58479.0,1.35053834]
[1725278609803,1e-08,58480.0,58479.0,0.83753834]
[1725278610408,0.085477,58492.0,58489.0,0.08548]
[1725278610601,0.085477,58492.0,58491.0,0.2004]
[1725278611108,0.0488,58494.0,58491.0,0.285878]
[1725278611304,0.134275,58494.0,58493.0,0.0004]
[1725278613204,0.134275,58494.0,58493.0,0.085876]
[1725278613205,0.0488,58494.0,58493.0,0.085876]
[1725278613428,0.00025664,58498.0,58493.0,0.0004]
[1725278613723,0.00025664,58498.0,58497.0,0.2004]
[1725278614218,0.00025664,58498.0,58497.0,0.28587]
[1725278614917,0.00025664,58498.0,58497.0,0.28687]
[1725278615319,0.00025664,58498.0,58497.0,0.29128703]
[1725278615704,0.00025664,58498.0,58497.0,0.29228703]
[1725278618715,0.00025664,58498.0,58497.0,0.29128703]
[1725278618915,0.00025664,58498.0,58497.0,0.29228703]
[1725278620827,0.00025664,58498.0,58497.0,0.00681703]
[1725278620828,0.88403264,58498.0,58497.0,0.00681703]
[1725278621023,0.085474,58495.0,58490.0,0.0511323]
[1725278621217,0.085478,58492.0,58491.0,0.085478]
[1725278622518,0.085471,58496.0,58495.0,0.08547]
[1725278622819,0.085471,58496.0,58495.0,0.28547]
[1725278623316,0.00025664,58498.0,58497.0,0.08547]
[1725278624916,0.00225664,58498.0,58497.0,0.08647]
[1725278626221,0.00325664,58498.0,58497.0,0.1556261]
[1725278626720,0.00125664,58498.0,58497.0,0.08647]
[1725278627017,0.00225664,58498.0,58497.0,0.08747]
[1725278628024,0.00225664,58498.0,58497.0,0.09187746]
[1725278629416,0.00225664,58498.0,58497.0,0.16003356]
[1725278630324,0.00125664,58498.0,58497.0,0.15903356]
[1725278630516,0.00125664,58498.0,58497.0,0.16003356]
[1725278630517,0.00225664,58498.0,58497.0,0.16003356]
[1725278631219,0.00225664,58498.0,58497.0,0.09187746]
[1725278635914,0.12172086,58498.0,58497.0,0.09187746]
[1725278640527,0.12172086,58498.0,58497.0,0.17734746]
[1725278641116,0.04411403,58498.0,58497.0,0.17734746]
[1725278641332,0.00225664,58498.0,58497.0,0.82734746]
[1725278641921,0.00225664,58498.0,58497.0,1.1627874]
[1725278642116,0.00225664,58498.0,58497.0,1.07759228]
[1725278642415,0.00225664,58498.0,58497.0,1.16298242]
[1725278643525,0.00225664,58498.0,58497.0,1.0327376]
[1725278644132,0.00225664,58498.0,58497.0,0.86187746]
[1725278644832,0.00225664,58498.0,58497.0,0.94734746]
[1725278645434,0.00225664,58498.0,58497.0,0.86187746]
[1725278645823,0.00225664,58498.0,58497.0,0.94734746]
[1725278646026,0.00225664,58498.0,58497.0,0.86187746]
[1725278647027,0.00225664,58498.0,58497.0,1.22267746]
[1725278647532,0.00225664,58498.0,58497.0,1.30814746]
[1725278647829,0.00225664,58498.0,58497.0,1.22267746]
[1725278648032,0.00225664,58498.0,58497.0,1.30814746]
[1725278648526,0.00225664,58498.0,58497.0,1.22267746]
[1725278649534,0.00125664,58498.0,58497.0,1.30714746]
[1725278649736,0.3608,58512.0,58497.0,1.30714746]
[1725278649737,0.13682431,58509.0,58498.0,0.085468]
[1725278650037,0.11950562,58511.0,58510.0,0.085451]
[1725278650224,0.181046,58514.0,58511.0,0.085449]
[1725278650420,0.0956,58514.0,58513.0,0.1204]
[1725278650730,0.0956,58514.0,58513.0,0.205446]
[1725278651333,0.049,58514.0,58513.0,0.205446]
[1725278651631,0.130442,58516.0,58513.0,0.205446]
[1725278651835,0.130442,58516.0,58515.0,0.0004]
[1725278652031,0.1722884,58516.0,58515.0,0.2004]
[1725278652234,0.0868464,58516.0,58515.0,0.2004]
[1725278652530,0.00025642,58519.0,58517.0,0.08544]
[1725278652733,0.04184569,58518.0,58517.0,0.08544]
[1725278653525,0.00025642,58519.0,58517.0,0.08544]
[1725278653738,0.00025642,58519.0,58518.0,0.0004]
[1725278654033,0.0421016,58519.0,58518.0,0.085839]
[1725278655335,0.1365016,58519.0,58518.0,0.085839]
[1725278655934,0.0421016,58519.0,58518.0,0.085839]
[1725278656331,0.00025642,58519.0,58518.0,0.085839]
[1725278656631,0.08569442,58519.0,58518.0,0.087839]
[1725278663340,0.22358247,58519.0,58518.0,0.0024]
[1725278663536,0.41935496,58519.0,58518.0,0.0024]
[1725278663739,0.26542762,58519.0,58518.0,0.0024]
[1725278671349,0.17113242,58519.0,58518.0,0.0024]
[1725278671945,0.17113242,58519.0,58518.0,0.1224]
[1725278673544,0.17113242,58519.0,58518.0,0.0024]
[1725278674046,0.09969442,58519.0,58518.0,0.206839]
[1725278674738,0.18513242,58519.0,58518.0,0.205839]
[1725278674945,0.19913242,58519.0,58518.0,0.205839]
[1725278677443,0.11369442,58519.0,58518.0,0.205839]
[1725278678444,0.2079926,58519.0,58518.0,0.205839]
[1725278679047,0.1225546,58519.0,58518.0,0.205839]
[1725278679248,0.02825642,58519.0,58518.0,0.566639]
[1725278679446,0.07010289,58519.0,58518.0,0.566639]
[1725278679650,0.15554089,58519.0,58518.0,0.566639]
[1725278681143,0.15554089,58519.0,58518.0,0.446639]
[1725278681347,0.15554089,58519.0,58518.0,0.566639]
[1725278682751,0.15553639,58519.0,58518.0,0.566639]
[1725278683060,0.07009839,58519.0,58518.0,0.566639]
[1725278685766,0.16468539,58519.0,58518.0,0.566639]
[1725278685947,0.20652736,58519.0,58518.0,0.566639]
[1725278686650,0.02825642,58519.0,58518.0,0.566639]
[1725278687059,0.02725642,58519.0,58518.0,0.567639]
[1725278687359,0.02625642,58519.0,58518.0,0.568639]
[1725278687655,0.11169442,58519.0,58518.0,0.087839]
[1725278687849,0.11169442,58519.0,58518.0,0.207839]
[1725278691847,0.11169442,58519.0,58518.0,0.087839]
[1725278692050,0.11169442,58519.0,58518.0,0.207839]
[1725278692451,0.11169442,58519.0,58518.0,0.0024]
[1725278692452,0.91521042,58519.0,58518.0,0.0024]
[1725278693055,1.51521042,58519.0,58518.0,0.00214337]
[1725278694253,1.50221042,58519.0,58518.0,0.001]
[1725278694462,1.51421042,58519.0,58518.0,0.002]
[1725278694660,1.51321042,58519.0,58518.0,0.002]
[1725278694868,1.39321042,58519.0,58518.0,0.002]
[1725278695164,1.51321042,58519.0,58518.0,0.002]
[1725278695852,0.91321042,58519.0,58518.0,0.002]
[1725278696054,1.51321042,58519.0,58518.0,0.002]
[1725278696261,0.79521042,58519.0,58518.0,0.001]
[1725278696468,0.79521042,58519.0,58514.0,0.12]
[1725278696469,0.170886,58515.0,58514.0,0.12]
[1725278696669,0.532086,58515.0,58514.0,0.12]
[1725278696969,0.085449,58511.0,58510.0,0.12454726]
[1725278697270,0.085849,58511.0,58510.0,0.12454726]
[1725278697865,0.085849,58511.0,58510.0,0.00454726]
[1725278698067,0.085451,58510.0,58509.0,0.085452]
[1725278698267,0.085851,58510.0,58509.0,0.085452]
[1725278698668,0.085851,58510.0,58509.0,0.08994776]
[1725278700573,0.099851,58510.0,58509.0,0.08994776]
[1725278701073,0.113851,58510.0,58509.0,0.08994776]
[1725278702684,0.199302,58510.0,58509.0,0.08994776]
[1725278703482,0.23289753,58510.0,58509.0,0.08994776]
[1725278703783,0.23289753,58510.0,58509.0,0.13734776]
[1725278704283,0.14744653,58510.0,58509.0,0.13734776]
[1725278704580,0.14744653,58510.0,58509.0,0.22279976]
[1725278704581,0.0284,58510.0,58509.0,0.22279976]
[1725278706987,0.0284,58510.0,58509.0,1.42097176]
[1725278708580,0.0284,58510.0,58509.0,1.48926109]
[1725278709084,0.0284,58510.0,58509.0,2.07097176]
[1725278709282,0.0284,58510.0,58509.0,2.13926109]